[Event "7° Rencontres Internationales des Echecs Francophones"]
[Site "PARIS, France"]
[Date "2019.08.10"]
[Round "8.1"]
[White "Gurevich, Mikhail"]
[Black "Le Roux, Jean-Pierre"]
[Result "1-0"]
[TimeControl "90'+30' + 30seconds/move"]
[WhiteElo "2559"]
[BlackElo "2535"]

1. c4 {[%clk 00:05:05]} g6 {[%clk 00:05:02]} {[%emt 00:00:07]} 2. Nc3 {[%clk
00:05:06]} {[%emt 00:00:02]} Bg7 {[%clk 00:05:01]} 3. g3 {[%clk 00:05:07]}
{[%emt 00:00:01]} c5 {[%clk 00:04:57]} {[%emt 00:00:08]} 4. Bg2 {[%clk
00:05:09]} {[%emt 00:00:01]} Nc6 {[%emt 00:00:03]} 5. a3 e6 {[%clk 00:04:58]}
{[%emt 00:00:03]} 6. Rb1 {[%clk 00:05:10]} {[%emt 00:00:04]} Nge7 {[%clk
00:04:59]} {[%emt 00:00:03]} 7. b4 {[%clk 00:05:13]} d6 {[%clk 00:04:59]}
{[%emt 00:00:03]} 8. e3 {[%clk 00:05:10]} {[%emt 00:00:06]} Bxc3 {[%clk
00:04:19]} {[%emt 00:00:43]} 9. dxc3 {[%clk 00:05:07]} {[%emt 00:00:06]} Ne5
{[%clk 00:04:19]} {[%emt 00:00:05]} 10. Qe2 {[%clk 00:05:02]} {[%emt 00:00:07]}
Qc7 {[%clk 00:03:44]} {[%emt 00:00:40]} 11. f4 {[%clk 00:04:15]} {[%emt
00:00:47]} Nd7 {[%clk 00:03:44]} {[%emt 00:00:02]} 12. Nf3 {[%clk 00:04:14]}
{[%emt 00:00:04]} b6 {[%clk 00:03:31]} {[%emt 00:00:17]} 13. O-O {[%clk
00:04:03]} {[%emt 00:00:13]} Bb7 {[%clk 00:03:24]} {[%emt 00:00:09]} 14. e4
{[%clk 00:04:04]} {[%emt 00:00:02]} Rc8 {[%clk 00:03:08]} {[%emt 00:00:20]} 15.
b5 {[%clk 00:03:44]} {[%emt 00:00:23]} O-O {[%clk 00:02:51]} {[%emt 00:00:20]}
16. Bd2 {[%clk 00:03:37]} {[%emt 00:00:09]} Rce8 {[%clk 00:02:32]} {[%emt
00:00:23]} 17. Rbe1 {[%clk 00:03:30]} {[%emt 00:00:09]} Qd8 {[%clk 00:02:08]}
{[%emt 00:00:28]} 18. Bc1 {[%clk 00:03:09]} {[%emt 00:00:24]} a6 {[%clk
00:01:58]} {[%emt 00:00:13]} 19. a4 {[%clk 00:02:55]} {[%emt 00:00:17]} axb5
{[%clk 00:02:00]} {[%emt 00:00:02]} 20. cxb5 {[%clk 00:02:52]} {[%emt
00:00:06]} Qa8 {[%clk 00:01:50]} {[%emt 00:00:13]} 21. Qc2 {[%clk 00:02:54]}
{[%emt 00:00:01]} Nf6 {[%clk 00:01:18]} {[%emt 00:00:34]} 22. e5 {[%clk
00:02:46]} {[%emt 00:00:11]} Ne4 {[%clk 00:00:41]} {[%emt 00:00:40]} 23. c4
{[%clk 00:02:45]} {[%emt 00:00:03]} d5 {[%clk 00:00:34]} {[%emt 00:00:10]} 24.
cxd5 {[%clk 00:02:18]} {[%emt 00:00:30]} exd5 {[%clk 00:00:37]} {[%emt
00:00:01]} 25. Nh4 {[%clk 00:02:18]} {[%emt 00:00:02]} f5 {[%clk 00:00:37]}
{[%emt 00:00:03]} 26. exf6 {[%clk 00:02:18]} {[%emt 00:00:03]} Rxf6 {[%clk
00:00:09]} {[%emt 00:00:31]} 27. Bb2 {[%clk 00:02:01]} {[%emt 00:00:20]} Rd6
{[%clk 00:00:06]} {[%emt 00:00:06]} 28. Qb3 {[%clk 00:01:42]} {[%emt 00:00:22]}
c4 {[%clk 00:00:05]} {[%emt 00:00:05]} 29. Qe3 {[%clk 00:01:36]} {[%emt
00:00:09]} d4 {[%clk 00:00:06]} {[%emt 00:00:02]} 30. Bxd4 {[%clk 00:01:35]}
{[%emt 00:00:03]} Nf5 {[%clk 00:00:05]} {[%emt 00:00:04]} 31. Nxf5 {[%clk
00:01:36]} {[%emt 00:00:02]} gxf5 {[%clk 00:00:08]} 32. Be5 {[%clk 00:01:34]}
{[%emt 00:00:05]} Rg6 {[%clk 00:00:06]} {[%emt 00:00:05]} 33. Qa3 {[%clk
00:01:08]} {[%emt 00:00:28]} Qc8 {[%clk 00:00:07]} {[%emt 00:00:02]} 34. Rc1
{[%clk 00:01:03]} {[%emt 00:00:07]} Nd2 {[%clk 00:00:04]} {[%emt 00:00:07]} 35.
Rf2 {[%clk 00:00:53]} {[%emt 00:00:13]} Nb3 {[%clk 00:00:05]} {[%emt 00:00:03]}
36. Bxb7 {[%clk 00:00:50]} {[%emt 00:00:06]} Qxb7 {[%clk 00:00:05]} {[%emt
00:00:03]} 37. Rxc4 {[%clk 00:00:51]} Na5 {[%clk 00:00:05]} {[%emt 00:00:03]}
38. Rc7 {[%clk 00:00:52]} {[%emt 00:00:02]} 1-0

[Event "7° Rencontres Internationales des Echecs Francophones"]
[Site "PARIS, France"]
[Date "2019.08.10"]
[Round "8.5"]
[White "Leconte, Jean-Olivier"]
[Black "David, Alberto"]
[Result "0-1"]
[TimeControl "90'+30' + 30seconds/move"]
[WhiteElo "2267"]
[BlackElo "2554"]

1. e4 {[%clk 00:05:04]} {[%emt 00:00:59]} c5 {[%clk 00:05:05]} {[%emt
00:00:02]} 2. Nf3 {[%clk 00:05:05]} {[%emt 00:00:03]} e6 {[%clk 00:05:06]}
{[%emt 00:00:02]} 3. b4 {[%clk 00:05:07]} {[%emt 00:00:03]} cxb4 {[%clk
00:04:50]} {[%emt 00:00:16]} 4. a3 {[%clk 00:05:08]} {[%emt 00:00:01]} d5
{[%clk 00:04:44]} {[%emt 00:00:09]} 5. e5 {[%clk 00:05:09]} {[%emt 00:00:04]}
Nc6 {[%clk 00:04:39]} {[%emt 00:00:07]} 6. axb4 {[%clk 00:05:09]} {[%emt
00:00:03]} Bxb4 {[%clk 00:04:40]} {[%emt 00:00:02]} 7. c3 {[%clk 00:05:11]}
{[%emt 00:00:02]} Be7 {[%clk 00:04:19]} {[%emt 00:00:24]} 8. d4 {[%clk
00:05:12]} {[%emt 00:00:01]} Bd7 {[%clk 00:03:54]} {[%emt 00:00:29]} 9. Bd3
{[%clk 00:05:13]} {[%emt 00:00:02]} Rc8 {[%clk 00:03:54]} {[%emt 00:00:03]} 10.
O-O {[%clk 00:05:04]} {[%emt 00:00:11]} a6 {[%clk 00:03:56]} 11. Re1 {[%clk
00:04:59]} {[%emt 00:00:07]} Na5 {[%clk 00:03:52]} {[%emt 00:00:10]} 12. h4
{[%clk 00:04:53]} {[%emt 00:00:06]} Nc4 {[%clk 00:03:42]} {[%emt 00:00:14]} 13.
h5 {[%clk 00:04:49]} {[%emt 00:00:07]} Nh6 {[%clk 00:03:39]} {[%emt 00:00:06]}
14. Nfd2 {[%clk 00:03:51]} {[%emt 00:01:01]} Bb5 {[%clk 00:03:15]} {[%emt
00:00:27]} 15. Nf1 {[%clk 00:03:36]} {[%emt 00:00:18]} Nf5 {[%clk 00:02:49]}
{[%emt 00:00:29]} 16. Qf3 {[%clk 00:03:05]} {[%emt 00:00:34]} g6 {[%clk
00:02:37]} {[%emt 00:00:15]} 17. h6 {[%clk 00:02:33]} {[%emt 00:00:34]} Bg5
{[%clk 00:02:31]} {[%emt 00:00:09]} 18. Bxf5 {[%clk 00:02:20]} {[%emt
00:00:17]} gxf5 {[%clk 00:02:33]} {[%emt 00:00:02]} 19. Qh5 {[%clk 00:02:07]}
{[%emt 00:00:15]} Bxc1 {[%clk 00:02:21]} {[%emt 00:00:15]} 20. Rxc1 {[%clk
00:02:09]} {[%emt 00:00:01]} Rg8 {[%clk 00:02:24]} 21. f4 {[%clk 00:01:31]}
{[%emt 00:00:42]} Rg4 {[%clk 00:02:07]} {[%emt 00:00:20]} 22. g3 {[%clk
00:01:32]} {[%emt 00:00:01]} Ke7 {[%clk 00:02:07]} {[%emt 00:00:02]} 23. Ra2
{[%clk 00:01:34]} {[%emt 00:00:01]} Qg8 {[%clk 00:02:09]} {[%emt 00:00:01]} 24.
Rg2 {[%clk 00:01:27]} {[%emt 00:00:09]} Qg6 {[%clk 00:02:05]} {[%emt 00:00:08]}
25. Qh3 {[%clk 00:01:23]} {[%emt 00:00:06]} Rg8 {[%clk 00:02:04]} {[%emt
00:00:04]} 26. Kh2 {[%clk 00:00:59]} {[%emt 00:00:27]} f6 {[%clk 00:01:53]}
{[%emt 00:00:13]} 27. Nbd2 {[%clk 00:00:55]} {[%emt 00:00:08]} fxe5 {[%clk
00:01:19]} {[%emt 00:00:37]} 28. dxe5 {[%clk 00:00:51]} {[%emt 00:00:07]} Bc6
{[%clk 00:01:06]} {[%emt 00:00:17]} 29. Nxc4 {[%clk 00:00:37]} {[%emt
00:00:16]} dxc4 {[%clk 00:01:07]} {[%emt 00:00:01]} 30. Rd2 {[%clk 00:00:36]}
{[%emt 00:00:05]} Rxf4 {[%clk 00:01:06]} {[%emt 00:00:04]} 31. Ne3 {[%clk
00:00:31]} {[%emt 00:00:08]} Re4 {[%clk 00:01:04]} {[%emt 00:00:05]} 32. Ng2
{[%clk 00:00:26]} {[%emt 00:00:08]} Qg5 {[%clk 00:01:00]} {[%emt 00:00:07]} 33.
Rcd1 {[%clk 00:00:20]} {[%emt 00:00:09]} Rg6 {[%clk 00:01:01]} {[%emt
00:00:01]} 34. Nh4 {[%clk 00:00:18]} {[%emt 00:00:06]} Rxh4 {[%clk 00:00:55]}
{[%emt 00:00:09]} 35. gxh4 {[%clk 00:00:18]} {[%emt 00:00:03]} Qf4+ {[%clk
00:00:00]} 0-1

[Event "7° Rencontres Internationales des Echecs Francophones"]
[Site "PARIS, France"]
[Date "2019.08.10"]
[Round "8.3"]
[White "Flom, Gabriel"]
[Black "Ider, Borya"]
[Result "0-1"]
[TimeControl "90'+30' + 30seconds/move"]
[WhiteElo "2355"]
[BlackElo "2492"]

1. d4 {[%clk 00:05:04]} {[%emt 00:00:01]} e6 {[%clk 00:05:04]} {[%emt
00:00:02]} 2. c4 {[%clk 00:05:05]} {[%emt 00:00:04]} b6 {[%clk 00:05:04]}
{[%emt 00:00:05]} 3. e4 {[%clk 00:05:00]} {[%emt 00:00:05]} Bb7 {[%clk
00:05:05]} {[%emt 00:00:03]} 4. Bd3 {[%clk 00:05:00]} {[%emt 00:00:02]} Nc6
{[%clk 00:04:49]} {[%emt 00:00:20]} 5. Ne2 {[%clk 00:04:56]} {[%emt 00:00:07]}
Nb4 {[%clk 00:04:50]} {[%emt 00:00:02]} 6. Nbc3 {[%clk 00:04:47]} {[%emt
00:00:12]} Nxd3+ {[%clk 00:04:49]} {[%emt 00:00:03]} 7. Qxd3 {[%clk 00:04:49]}
{[%emt 00:00:01]} g6 {[%clk 00:04:47]} {[%emt 00:00:06]} 8. h4 {[%clk
00:04:13]} {[%emt 00:00:39]} h6 {[%clk 00:04:30]} {[%emt 00:00:19]} 9. h5
{[%clk 00:04:10]} {[%emt 00:00:07]} g5 {[%clk 00:04:31]} 10. f4 {[%clk
00:04:12]} {[%emt 00:00:01]} Qe7 {[%clk 00:04:26]} {[%emt 00:00:08]} 11. a4
{[%clk 00:03:12]} {[%emt 00:01:04]} f5 {[%clk 00:03:28]} {[%emt 00:01:01]} 12.
e5 {[%clk 00:02:49]} {[%emt 00:00:25]} d6 {[%clk 00:03:04]} {[%emt 00:00:28]}
13. exd6 {[%clk 00:02:23]} {[%emt 00:00:29]} cxd6 {[%clk 00:03:03]} {[%emt
00:00:04]} 14. d5 {[%clk 00:01:50]} {[%emt 00:00:37]} Nf6 {[%clk 00:02:40]}
{[%emt 00:00:26]} 15. fxg5 {[%clk 00:01:49]} {[%emt 00:00:04]} hxg5 {[%clk
00:02:29]} {[%emt 00:00:13]} 16. Bxg5 {[%clk 00:01:51]} {[%emt 00:00:01]} Rg8
{[%clk 00:02:31]} 17. Bxf6 {[%clk 00:01:15]} {[%emt 00:00:39]} Qxf6 {[%clk
00:02:32]} {[%emt 00:00:02]} 18. O-O-O {[%clk 00:01:07]} {[%emt 00:00:11]} e5
{[%clk 00:02:24]} {[%emt 00:00:12]} 19. c5 {[%clk 00:01:02]} {[%emt 00:00:08]}
dxc5 {[%clk 00:02:11]} {[%emt 00:00:15]} 20. Qb5+ {[%clk 00:01:05]} Kd8 {[%clk
00:02:11]} {[%emt 00:00:03]} 21. d6 {[%clk 00:01:07]} Rg4 {[%clk 00:01:50]}
{[%emt 00:00:24]} 22. Nd5 {[%clk 00:00:52]} {[%emt 00:00:18]} Qf7 {[%clk
00:01:29]} {[%emt 00:00:24]} 23. Nec3 {[%clk 00:00:40]} {[%emt 00:00:16]} Rd4
{[%clk 00:01:14]} {[%emt 00:00:18]} 24. h6 {[%clk 00:00:39]} {[%emt 00:00:04]}
Bxd5 {[%clk 00:00:48]} {[%emt 00:00:29]} 25. h7 {[%clk 00:00:29]} {[%emt
00:00:12]} Bc4 {[%clk 00:00:35]} {[%emt 00:00:16]} 26. Qc6 {[%clk 00:00:25]}
{[%emt 00:00:07]} Rc8 {[%clk 00:00:32]} {[%emt 00:00:06]} 27. Qxc8+ {[%clk
00:00:15]} {[%emt 00:00:14]} Kxc8 {[%clk 00:00:35]} 28. h8=Q {[%clk 00:00:16]}
{[%emt 00:00:02]} Qg7 {[%clk 00:00:12]} {[%emt 00:00:26]} 29. Qxg7 {[%clk
00:00:10]} {[%emt 00:00:09]} Bxg7 {[%clk 00:00:14]} 30. Rh7 {[%clk 00:00:13]}
Rg4 {[%clk 00:00:16]} {[%emt 00:00:02]} 31. d7+ {[%emt 00:00:06]} Kd8 32. Nd5
{[%clk 00:00:08]} {[%emt 00:00:05]} Bxd5 {[%clk 00:00:17]} {[%emt 00:00:05]} 33.
Rxd5 {[%clk 00:00:10]} Rxg2 {[%clk 00:00:18]} {[%emt 00:00:03]} 34. Rh5 {[%clk
00:00:11]} {[%emt 00:00:01]} f4 {[%clk 00:00:18]} {[%emt 00:00:03]} 35. a5
{[%clk 00:00:12]} {[%emt 00:00:03]} e4 {[%clk 00:00:13]} {[%emt 00:00:08]} 36.
Rhf5 {[%clk 00:00:09]} {[%emt 00:00:06]} e3 {[%clk 00:00:12]} {[%emt 00:00:04]}
37. Kd1 {[%clk 00:00:11]} {[%emt 00:00:06]} Rxb2 {[%clk 00:00:06]} {[%emt
00:00:03]} 38. Rg5 {[%clk 00:00:05]} {[%emt 00:00:10]} e2+ {[%clk 00:00:08]} 39.
Ke1 {[%clk 00:00:07]} {[%emt 00:00:01]} Bc3+ {[%clk 00:00:10]} 40. Kf2 {[%clk
00:00:10]} e1=Q+ {[%emt 00:00:02]} 41. Kf3 Qe2+ {[%clk 00:00:12]} {[%emt
00:00:02]} 0-1



[ePGN "0.1;DGT LiveChess/2.2.4"]

[Event "7° Rencontres Internationales des Echecs Francophones"]
[Site "PARIS, France"]
[Date "2019.08.10"]
[Round "9.5"]
[White "Moussard, Jules"]
[Black "Flom, Gabriel"]
[Result "1-0"]
[TimeControl "90'+30' + 30seconds/move"]
[WhiteElo "2613"]
[BlackElo "2355"]

1. e4 {[%clk 00:05:05]} {[%emt 00:06:40]} e6 {[%clk 00:05:05]} 2. d4 {[%clk
00:05:07]} {[%emt 00:00:02]} d5 {[%clk 00:05:07]} {[%emt 00:00:01]} 3. exd5
{[%clk 00:05:08]} {[%emt 00:00:01]} exd5 {[%clk 00:05:09]} 4. Nf3 {[%clk
00:05:10]} {[%emt 00:00:02]} Nc6 {[%clk 00:05:08]} {[%emt 00:00:05]} 5. Bb5
{[%clk 00:05:07]} {[%emt 00:00:05]} Bd6 {[%clk 00:05:02]} {[%emt 00:00:10]} 6.
O-O {[%clk 00:05:01]} {[%emt 00:00:07]} Nge7 {[%clk 00:05:03]} {[%emt
00:00:02]} 7. h3 {[%clk 00:04:58]} {[%emt 00:00:06]} a6 {[%clk 00:05:00]}
{[%emt 00:00:06]} 8. Ba4 {[%clk 00:04:59]} {[%emt 00:00:02]} O-O {[%clk
00:05:01]} {[%emt 00:00:03]} 9. c3 {[%clk 00:05:01]} Bf5 {[%clk 00:04:50]}
{[%emt 00:00:14]} 10. Bg5 {[%clk 00:04:56]} {[%emt 00:00:08]} f6 {[%clk
00:04:52]} {[%emt 00:00:02]} 11. Be3 {[%clk 00:04:58]} b5 {[%clk 00:04:49]}
{[%emt 00:00:05]} 12. Bb3 {[%clk 00:05:00]} {[%emt 00:00:01]} Na5 {[%clk
00:04:51]} 13. Nbd2 {[%clk 00:05:02]} Nc4 {[%clk 00:04:50]} {[%emt 00:00:05]}
14. Qc1 {[%clk 00:04:55]} {[%emt 00:00:09]} Nxe3 {[%clk 00:04:45]} {[%emt
00:00:09]} 15. fxe3 {[%clk 00:04:57]} {[%emt 00:00:01]} Bd3 {[%clk 00:04:36]}
{[%emt 00:00:12]} 16. Rd1 {[%clk 00:04:44]} {[%emt 00:00:15]} Kh8 {[%clk
00:04:22]} {[%emt 00:00:17]} 17. Bc2 {[%clk 00:04:46]} Bxc2 {[%clk 00:03:13]}
{[%emt 00:01:12]} 18. Qxc2 {[%clk 00:04:48]} f5 {[%clk 00:03:15]} {[%emt
00:00:01]} 19. a4 {[%clk 00:04:48]} {[%emt 00:00:03]} Qd7 {[%clk 00:03:14]}
{[%emt 00:00:04]} 20. b3 {[%clk 00:04:42]} {[%emt 00:00:09]} Qe6 {[%clk
00:03:14]} {[%emt 00:00:03]} 21. Qd3 {[%clk 00:04:40]} {[%emt 00:00:05]} c6
{[%clk 00:03:15]} {[%emt 00:00:01]} 22. c4 {[%clk 00:04:40]} {[%emt 00:00:03]}
1-0

[Event "7° Rencontres Internationales des Echecs Francophones"]
[Site "PARIS, France"]
[Date "2019.08.10"]
[Round "9.2"]
[White "Dardha, Daniel"]
[Black "Shchekachev, Andrei"]
[Result "1/2-1/2"]
[TimeControl "90'+30' + 30seconds/move"]
[WhiteElo "2390"]
[BlackElo "2446"]

1. Nf3 {[%clk 00:05:04]} {[%emt 00:00:02]} g6 {[%clk 00:05:02]} {[%emt
00:00:05]} 2. g3 {[%clk 00:05:05]} {[%emt 00:00:02]} c5 {[%clk 00:05:02]}
{[%emt 00:00:02]} 3. Bg2 {[%clk 00:05:06]} {[%emt 00:00:02]} Bg7 {[%clk
00:05:04]} 4. O-O {[%clk 00:05:08]} {[%emt 00:00:04]} Nc6 {[%clk 00:05:06]} 5.
c4 {[%clk 00:05:09]} {[%emt 00:00:02]} d6 {[%clk 00:05:05]} {[%emt 00:00:04]} 6.
Nc3 {[%clk 00:05:10]} {[%emt 00:00:01]} e6 {[%clk 00:05:07]} {[%emt 00:00:03]}
7. e3 {[%clk 00:05:08]} {[%emt 00:00:05]} Nge7 {[%clk 00:05:08]} {[%emt
00:00:02]} 8. d4 {[%clk 00:05:10]} O-O {[%clk 00:05:08]} {[%emt 00:00:03]} 9.
b3 {[%clk 00:05:09]} {[%emt 00:00:05]} Re8 {[%clk 00:05:08]} {[%emt 00:00:03]}
10. Bb2 {[%clk 00:05:11]} {[%emt 00:00:02]} cxd4 {[%clk 00:05:09]} {[%emt
00:00:02]} 11. exd4 {[%clk 00:05:13]} {[%emt 00:00:01]} d5 {[%clk 00:05:10]}
{[%emt 00:00:01]} 12. cxd5 {[%clk 00:05:07]} {[%emt 00:00:09]} exd5 {[%clk
00:05:06]} {[%emt 00:00:07]} 13. Re1 {[%clk 00:05:06]} {[%emt 00:00:03]} Be6
{[%clk 00:05:02]} {[%emt 00:00:07]} 14. Ne5 {[%clk 00:05:05]} {[%emt 00:00:04]}
Rc8 {[%clk 00:04:53]} {[%emt 00:00:12]} 15. Rc1 {[%clk 00:04:58]} {[%emt
00:00:10]} Qa5 {[%clk 00:03:43]} {[%emt 00:01:13]} 16. a3 {[%clk 00:04:53]}
{[%emt 00:00:08]} Qd8 {[%clk 00:02:51]} {[%emt 00:00:54]} 17. Na4 {[%clk
00:04:30]} {[%emt 00:00:26]} b6 {[%clk 00:02:43]} {[%emt 00:00:11]} 18. Qd2
{[%clk 00:04:14]} {[%emt 00:00:19]} Nxe5 {[%clk 00:02:33]} {[%emt 00:00:13]} 19.
dxe5 {[%clk 00:04:16]} {[%emt 00:00:02]} Rxc1 {[%clk 00:02:23]} {[%emt
00:00:13]} 20. Rxc1 {[%clk 00:04:17]} {[%emt 00:00:01]} d4 {[%clk 00:02:24]}
{[%emt 00:00:03]} 21. Qxd4 {[%clk 00:03:20]} {[%emt 00:01:00]} Qxd4 {[%clk
00:02:24]} {[%emt 00:00:02]} 22. Bxd4 {[%clk 00:03:22]} Bxb3 {[%clk 00:02:25]}
{[%emt 00:00:02]} 23. Nc3 {[%clk 00:02:45]} {[%emt 00:00:41]} Nf5 {[%clk
00:02:25]} {[%emt 00:00:03]} 24. Nb5 {[%clk 00:02:39]} {[%emt 00:00:08]} Bxe5
{[%clk 00:01:55]} {[%emt 00:00:34]} 25. Bxe5 {[%clk 00:02:41]} {[%emt
00:00:01]} Rxe5 {[%clk 00:01:57]} {[%emt 00:00:01]} 26. Nxa7 {[%clk 00:02:41]}
{[%emt 00:00:02]} Ra5 {[%clk 00:01:56]} {[%emt 00:00:05]} 27. Nc8 {[%clk
00:02:43]} {[%emt 00:00:01]} b5 {[%clk 00:01:51]} {[%emt 00:00:08]} 28. Bf1
{[%clk 00:02:32]} {[%emt 00:00:14]} Ra8 {[%clk 00:01:20]} {[%emt 00:00:33]} 29.
g4 {[%clk 00:01:20]} {[%emt 00:01:15]} Nd4 {[%clk 00:01:18]} {[%emt 00:00:04]}
30. Nd6 {[%clk 00:01:22]} {[%emt 00:00:03]} Rxa3 {[%clk 00:00:52]} {[%emt
00:00:28]} 31. Nxb5 {[%clk 00:01:22]} {[%emt 00:00:03]} Nxb5 {[%clk 00:00:54]}
32. Bxb5 {[%clk 00:01:23]} {[%emt 00:00:02]} Be6 {[%clk 00:00:56]} {[%emt
00:00:02]} 33. Be2 {[%clk 00:01:24]} {[%emt 00:00:01]} Kg7 {[%clk 00:00:55]}
{[%emt 00:00:04]} 34. Rc2 {[%clk 00:01:24]} {[%emt 00:00:04]} Ra4 {[%clk
00:00:55]} {[%emt 00:00:03]} 35. h3 {[%clk 00:01:15]} {[%emt 00:00:11]} Kf6
{[%clk 00:00:55]} {[%emt 00:00:03]} 36. Kg2 {[%clk 00:01:17]} {[%emt 00:00:02]}
Ke5 {[%clk 00:00:54]} {[%emt 00:00:04]} 37. Rc3 {[%clk 00:01:10]} {[%emt
00:00:10]} Kf4 {[%clk 00:00:41]} {[%emt 00:00:16]} 38. Rf3+ {[%clk 00:01:11]}
{[%emt 00:00:02]} Kg5 {[%clk 00:00:42]} {[%emt 00:00:01]} 39. Kg3 {[%clk
00:01:13]} {[%emt 00:00:02]} h5 {[%clk 00:00:40]} {[%emt 00:00:05]} 40. h4+
{[%clk 00:00:45]} {[%emt 00:00:31]} Kh6 {[%clk 00:00:42]} 41. g5+ {[%clk
00:00:28]} {[%emt 00:00:19]} Kg7 {[%clk 00:00:44]} 42. Rf4 {[%clk 00:00:30]}
{[%emt 00:00:02]} Ra1 {[%clk 00:00:47]} 43. Bc4 {[%clk 00:00:15]} {[%emt
00:00:19]} Ra3+ {[%clk 00:00:44]} {[%emt 00:00:06]} 44. f3 {[%clk 00:00:17]}
{[%emt 00:00:01]} Bxc4 {[%clk 00:00:42]} {[%emt 00:00:05]} 45. Rxc4 {[%clk
00:00:19]} {[%emt 00:00:02]} 1/2-1/2

[Event "7° Rencontres Internationales des Echecs Francophones"]
[Site "PARIS, France"]
[Date "2019.08.10"]
[Round "9.3"]
[White "David, Alberto"]
[Black "Huynh, Laurent"]
[Result "1-0"]
[TimeControl "90'+30' + 30seconds/move"]
[WhiteElo "2554"]
[BlackElo "2135"]

1. e4 {[%clk 00:05:05]} {[%emt 00:00:30]} e5 {[%clk 00:05:05]} 2. Nf3 {[%clk
00:05:07]} Nc6 {[%clk 00:05:07]} {[%emt 00:00:02]} 3. Bb5 {[%clk 00:05:09]} a6
{[%clk 00:05:10]} 4. Ba4 {[%clk 00:05:11]} Nf6 {[%clk 00:05:12]} 5. d3 {[%clk
00:05:11]} {[%emt 00:00:03]} b5 {[%clk 00:05:03]} {[%emt 00:00:12]} 6. Bb3
{[%clk 00:05:13]} {[%emt 00:00:01]} Be7 {[%clk 00:05:04]} {[%emt 00:00:03]} 7.
O-O {[%clk 00:05:10]} {[%emt 00:00:05]} d6 {[%clk 00:05:06]} {[%emt 00:00:01]}
8. c3 {[%clk 00:05:10]} {[%emt 00:00:03]} O-O {[%clk 00:05:07]} {[%emt
00:00:02]} 9. Re1 {[%clk 00:05:11]} {[%emt 00:00:01]} Na5 {[%clk 00:05:08]}
{[%emt 00:00:02]} 10. Bc2 {[%clk 00:05:13]} c5 {[%clk 00:05:10]} {[%emt
00:00:02]} 11. Nbd2 {[%clk 00:05:15]} Nc6 {[%clk 00:05:10]} {[%emt 00:00:02]}
12. Nf1 {[%clk 00:05:17]} {[%emt 00:00:02]} h6 {[%clk 00:04:49]} {[%emt
00:00:24]} 13. Ne3 {[%clk 00:05:05]} {[%emt 00:00:14]} Be6 {[%clk 00:04:49]}
{[%emt 00:00:02]} 14. d4 {[%clk 00:05:06]} {[%emt 00:00:03]} cxd4 {[%clk
00:04:50]} {[%emt 00:00:02]} 15. cxd4 {[%clk 00:05:08]} exd4 {[%clk 00:04:45]}
{[%emt 00:00:08]} 16. Nxd4 {[%clk 00:05:10]} {[%emt 00:00:01]} Nxd4 {[%clk
00:04:41]} {[%emt 00:00:07]} 17. Qxd4 {[%clk 00:05:12]} Rc8 {[%clk 00:04:35]}
{[%emt 00:00:09]} 18. Bb3 {[%clk 00:05:11]} {[%emt 00:00:04]} Re8 {[%clk
00:03:59]} {[%emt 00:00:39]} 19. Bd2 {[%clk 00:05:03]} {[%emt 00:00:10]} Nd7
{[%clk 00:03:05]} {[%emt 00:00:58]} 20. Nd5 {[%clk 00:04:51]} {[%emt 00:00:16]}
Bxd5 {[%clk 00:02:54]} {[%emt 00:00:15]} 21. Qxd5 {[%clk 00:04:52]} {[%emt
00:00:01]} Rf8 {[%clk 00:02:17]} {[%emt 00:00:39]} 22. Qh5 {[%clk 00:04:06]}
{[%emt 00:00:48]} Bf6 {[%clk 00:02:06]} {[%emt 00:00:15]} 23. Rad1 {[%clk
00:03:56]} {[%emt 00:00:13]} Nc5 {[%clk 00:01:57]} {[%emt 00:00:13]} 24. Bf4
{[%clk 00:02:33]} {[%emt 00:01:24]} Nxb3 {[%clk 00:01:25]} {[%emt 00:00:36]} 25.
axb3 {[%clk 00:02:35]} {[%emt 00:00:01]} Rc6 {[%clk 00:01:27]} 26. e5 {[%clk
00:02:24]} {[%emt 00:00:15]} Bg5 {[%clk 00:01:26]} {[%emt 00:00:04]} 27. Bxg5
{[%clk 00:02:16]} {[%emt 00:00:11]} Qxg5 {[%clk 00:01:25]} {[%emt 00:00:04]} 28.
Qf3 {[%clk 00:02:15]} {[%emt 00:00:04]} Rc7 {[%clk 00:00:56]} {[%emt 00:00:32]}
29. exd6 {[%clk 00:02:15]} {[%emt 00:00:04]} Rd7 {[%clk 00:00:58]} 30. Qc6
{[%clk 00:02:06]} {[%emt 00:00:11]} Rfd8 {[%clk 00:00:56]} {[%emt 00:00:06]} 31.
g3 {[%clk 00:01:48]} {[%emt 00:00:20]} Kh7 {[%clk 00:00:30]} {[%emt 00:00:29]}
32. Re2 {[%clk 00:01:20]} {[%emt 00:00:32]} Qf6 {[%clk 00:00:22]} {[%emt
00:00:11]} 33. Red2 {[%clk 00:01:22]} {[%emt 00:00:02]} Qe6 {[%clk 00:00:24]}
34. Rd5 {[%clk 00:01:15]} {[%emt 00:00:10]} a5 {[%clk 00:00:14]} {[%emt
00:00:13]} 35. h4 {[%clk 00:00:59]} {[%emt 00:00:19]} g6 {[%clk 00:00:17]} 36.
Qc5 {[%clk 00:00:57]} {[%emt 00:00:05]} a4 {[%clk 00:00:12]} {[%emt 00:00:09]}
37. b4 {[%clk 00:00:53]} {[%emt 00:00:07]} Qf6 {[%clk 00:00:13]} {[%emt
00:00:02]} 38. Qxb5 {[%clk 00:00:38]} {[%emt 00:00:17]} Rxd6 {[%clk 00:00:15]}
{[%emt 00:00:01]} 39. Rxd6 {[%clk 00:00:40]} Rxd6 {[%clk 00:00:17]} 40. Rxd6
{[%clk 00:00:42]} {[%emt 00:00:01]} Qxd6 {[%clk 00:00:19]} 41. Qxa4 {[%clk
00:00:44]} Qb6 {[%clk 00:00:20]} {[%emt 00:00:03]} 42. Qb3 {[%clk 00:00:36]}
{[%emt 00:00:10]} Kg8 {[%clk 00:00:20]} {[%emt 00:00:03]} 43. Qc4 {[%clk
00:00:37]} {[%emt 00:00:02]} Qd6 {[%clk 00:00:15]} {[%emt 00:00:07]} 44. b5
{[%clk 00:00:39]} {[%emt 00:00:02]} Qd1+ {[%clk 00:00:17]} 45. Kg2 {[%clk
00:00:41]} 1-0